fUSD/lending_fUSD_20240317
["ID","MTS","AMOUNT","RATE_DAILY","PERIOD"]
[319405244,1710717069123,-9183.96,0.00027,2]
[319405245,1710717069133,-9183.96,0.00027,2]
[319405246,1710717069143,-9183.96,0.00027,2]
[319405247,1710717069152,-9183.96,0.00027,2]
[319405248,1710717069161,-9183.96,0.00027,2]
[319405249,1710717069170,-1012.34,0.00027005,2]
[319405250,1710717069179,-307.68,0.00027025,2]
[319405251,1710717069188,-500.0,0.0002705,120]
[319405252,1710717069198,-154.52759481,0.00027097,2]
[319405253,1710717069207,-3410.56,0.00027123,2]
[319405254,1710717069216,-1400.32453439,0.000272,30]
[319405255,1710717069230,-151.12768757,0.00027228,2]
[319405256,1710717069240,-150.0,0.00027253,2]
[319405257,1710717069249,-1026.0,0.00027263,2]
[319405258,1710717069259,-167.577501,0.00027265,2]
[319405259,1710717069269,-176.403666,0.00027265,2]
[319405260,1710717069278,-175.613704,0.00027265,2]
[319405261,1710717069287,-174.469426,0.00027265,2]
[319405262,1710717069296,-275.912698,0.00027265,2]
[319405263,1710717069307,-190.831223,0.00027265,2]
[319405264,1710717069316,-155.33791433,0.000273,2]
[319405265,1710717069328,-1012.34,0.0002734,2]
[319405266,1710717069337,-300.0,0.00027397,5]
[319405267,1710717069346,-500.0,0.00027397,2]
[319405268,1710717069356,-500.0,0.00027397,2]
[319405269,1710717069365,-500.0,0.00027397,2]
[319405270,1710717069374,-500.0,0.00027397,2]
[319405271,1710717069383,-500.0,0.00027397,2]
[319405272,1710717069392,-500.0,0.00027397,2]
[319405273,1710717069401,-500.0,0.00027397,2]
[319405274,1710717069410,-500.0,0.00027397,2]
[319405275,1710717069419,-500.0,0.00027397,2]
[319405276,1710717069428,-500.0,0.00027397,2]
[319405277,1710717069438,-500.0,0.00027397,2]
[319405278,1710717069447,-504.87676864,0.00027397,2]
[319405279,1710717069456,-1107.1575,0.00027397,2]
[319405280,1710717069466,-554.89061024,0.00027397,30]
[319405281,1710717069475,-680.52216483,0.00027397,30]
[319405282,1710717069485,-754.32224713,0.00027397,2]
[319405283,1710717069495,-150.0,0.00027397,2]
[319405284,1710717069504,-510.0,0.00027397,120]
[319405285,1710717069514,-151.0,0.00027397,2]
[319405286,1710717069524,-1000.0,0.00027397,2]
[319405287,1710717069533,-1000.0,0.00027397,2]
[319405288,1710717069543,-1000.0,0.00027397,2]
[319405289,1710717069553,-1000.0,0.00027397,2]
[319405290,1710717069563,-1000.0,0.00027397,2]
[319405291,1710717069577,-1000.0,0.00027397,2]
[319405292,1710717069586,-1000.0,0.00027397,2]
[319405293,1710717069596,-1000.0,0.00027397,2]
[319405294,1710717069606,-1000.0,0.00027397,2]
[319405295,1710717069615,-1000.0,0.00027397,2]
[319405296,1710717069626,-1000.0,0.00027397,2]
[319405297,1710717069635,-1000.0,0.00027397,2]
[319405298,1710717069645,-1000.0,0.00027397,2]
[319405299,1710717069655,-1000.0,0.00027397,2]
[319405300,1710717069664,-1000.0,0.00027397,2]
[319405301,1710717069675,-1000.0,0.00027397,2]
[319405302,1710717069684,-1000.0,0.00027397,2]
[319405303,1710717069694,-1000.0,0.00027397,2]
[319405304,1710717069703,-1000.0,0.00027397,2]
[319405305,1710717069713,-1000.0,0.00027397,2]
[319405306,1710717069722,-1000.0,0.00027397,2]
[319405307,1710717069732,-1000.0,0.00027397,2]
[319405308,1710717069741,-1000.0,0.00027397,2]
[319405309,1710717069751,-941.0,0.00027397,2]
[319405310,1710717069761,-1000.0,0.00027397,2]
[319405311,1710717069914,-15683.49,0.00027397,2]
[319405312,1710717069924,-24000.0,0.00027397,2]
[319405313,1710717069934,-79390.66,0.00027397,2]
[319405314,1710717069944,-2540.0,0.00027397,10]
[319405315,1710717069953,-1000.0,0.00027397,2]
[319405316,1710717069963,-1000.0,0.00027397,2]
[319405317,1710717069973,-1000.0,0.00027397,2]
[319405318,1710717069983,-1000.0,0.00027397,2]
[319405319,1710717069992,-1641.97338,0.00027397,3]
[319405320,1710717070002,-155.0,0.00027398,2]
[319405321,1710717070013,-1000.0,0.000274,2]
[319405322,1710717070026,-2000.0,0.000274,2]
[319405323,1710717070035,-311.0,0.000274,2]
[319405324,1710717070045,-732.0,0.000274,2]
[319405325,1710717070054,-10000.0,0.000274,2]
[319405326,1710717070064,-1000.0,0.000274,2]
[319405327,1710717070077,-200.0,0.000274,2]
[319405328,1710717070087,-10000.0,0.000274,2]
[319405329,1710717070096,-1000.0,0.000274,2]
[319405330,1710717070106,-152.37,0.000274,2]
[319405331,1710717070115,-152.37,0.000274,2]
[319405332,1710717070124,-152.37,0.000274,2]
[319405333,1710717070133,-152.37,0.000274,2]
[319405334,1710717070142,-152.37,0.000274,2]
[319405335,1710717070151,-152.37,0.000274,2]
[319405336,1710717070160,-152.37,0.000274,2]
[319405337,1710717070169,-152.37,0.000274,2]
[319405338,1710717070180,-152.37,0.000274,2]
[319405339,1710717070189,-152.37,0.000274,2]
[319405340,1710717070199,-152.37,0.000274,2]
[319405341,1710717070208,-152.37,0.000274,2]
[319405342,1710717070218,-152.37,0.000274,2]
[319405343,1710717070227,-152.37,0.000274,2]
[319405344,1710717070238,-152.37,0.000274,2]
[319405345,1710717070248,-152.37,0.000274,2]
[319405346,1710717070257,-152.37,0.000274,2]
[319405347,1710717070267,-152.37,0.000274,2]
[319405348,1710717070276,-6751.05,0.000274,2]
[319405349,1710717070286,-6751.05,0.000274,2]
[319405350,1710717070295,-6751.05,0.000274,2]
[319405351,1710717070305,-6751.05,0.000274,2]
[319405352,1710717070315,-6751.05,0.000274,2]
[319405353,1710717070328,-155.33791433,0.0002749,2]
[319405354,1710717070338,-187.35601017,0.000275,2]
[319405355,1710717070347,-561.0,0.000275,16]
[319405356,1710717070356,-512.97,0.00027535,2]
[319405357,1710717070365,-155.33791433,0.00027574,2]
[319405358,1710717070376,-20000.0,0.000276,5]
[319405359,1710717070385,-154.12575019,0.0002767,2]
[319405360,1710717070395,-510.0,0.00027671,120]
[319405361,1710717070405,-150.0,0.00027758,2]
[319405362,1710717070415,-6805.375444,0.000278,2]
[319405363,1710717070426,-307.68,0.0002783,2]
[319405364,1710717070435,-361.92320166,0.00027874,2]
[319405365,1710717070445,-151.30766299,0.00027937,2]
[319405366,1710717070454,-300.0,0.00027945,5]
[319405367,1710717070465,-150.0,0.00027945,2]
[319405368,1710717070474,-510.0,0.00027945,120]
[319405369,1710717070483,-1000.0,0.00027945,2]
[319405370,1710717070493,-2000.0,0.00027973,2]
[319405371,1710717070502,-904.66276565,0.00028,3]
[319405372,1710717070512,-666.25,0.00028,2]
[319405373,1710717070522,-1698.44699853,0.00028,30]
[319405374,1710717070532,-150.0,0.00028,2]
[319405375,1710717070542,-150.0,0.00028,2]
[319405376,1710717070552,-24403.81819403,0.00028,2]
[319405377,1710717070561,-488.07636388,0.00028,2]
[319405378,1710717070572,-561.0,0.00028,16]
[319405379,1710717070582,-1200.0,0.00028,29]
[319405380,1710717070591,-2103.55543261,0.00028,2]
[319405381,1710717070601,-510.0,0.00028219,120]
[319405382,1710717070612,-150.0,0.00028262,2]
[319405383,1710717070621,-1012.34,0.0002834,2]
[319405384,1710717070630,-150.80584846,0.00028413,2]
[319405385,1710717070641,-300.0,0.00028493,5]
[319405386,1710717070650,-150.0,0.00028493,2]
[319405387,1710717070660,-510.0,0.00028493,120]
[319405388,1710717070669,-6479.03158741,0.000285,120]
[319405389,1710717070680,-561.0,0.000285,17]
[319405390,1710717070690,-190.831223,0.00028628,2]
[319405391,1710717070699,-307.68,0.00028635,2]
[319405392,1710717070709,-152.0,0.00028651,4]
[319405393,1710717070718,-1012.34,0.00028675,2]
[319405394,1710717070727,-155.33791433,0.00028681,2]
[319405395,1710717070736,-1026.0,0.00028698,5]
[319405396,1710717070746,-152.37,0.000287,2]
[319405397,1710717070757,-152.37,0.000287,2]
[319405398,1710717070767,-152.37,0.000287,2]
[319405399,1710717070776,-152.37,0.000287,2]
[319405400,1710717070785,-152.37,0.000287,2]
[319405401,1710717070795,-152.37,0.000287,2]
[319405402,1710717070805,-152.37,0.000287,2]
[319405403,1710717070815,-152.37,0.000287,2]
[319405404,1710717070827,-152.37,0.000287,2]
[319405405,1710717070836,-152.37,0.000287,2]
[319405406,1710717070845,-152.37,0.000287,2]
[319405407,1710717070854,-152.37,0.000287,2]
[319405408,1710717070863,-152.37,0.000287,2]
[319405409,1710717070872,-152.37,0.000287,2]
[319405410,1710717070882,-152.37,0.000287,2]
[319405411,1710717070893,-152.37,0.000287,2]
[319405412,1710717070903,-152.37,0.000287,2]
[319405413,1710717070912,-152.37,0.000287,2]
[319405414,1710717070921,-2214.315,0.00028767,2]
[319405415,1710717070930,-510.0,0.00028767,120]
[319405416,1710717070940,-150.0,0.00028767,2]
[319405417,1710717070949,-155.0,0.00028768,2]
[319405418,1710717070958,-11389.73288969,0.00028798,3]
[319405419,1710717070967,-9073.833925,0.000288,2]
[319405420,1710717070977,-500.0,0.000288,120]
[319405421,1710717070986,-2271.69903984,0.000288,3]
[319405422,1710717070995,-7234.49,0.000288,2]
[319405423,1710717071005,-7234.49,0.000288,2]
[319405424,1710717071014,-7234.49,0.000288,2]
[319405425,1710717071024,-605.0,0.00028818,2]
[319405426,1710717071033,-5098.6107097,0.0002886,2]
[319405427,1710717071042,-15400.7658391,0.0002886,2]
[319405428,1710717071052,-1330.2269316,0.0002886,2]
[319405429,1710717071061,-355.3000474,0.0002886,2]
[319405430,1710717071073,-197462.4902275,0.0002886,2]
[319405431,1710717071082,-11597.6344156,0.0002886,2]
[319405432,1710717071092,-1450158.38016543,0.0002888,2]
[319405433,1710717071102,-4443279.28021352,0.0002888,2]
[319405434,1710717071113,-157421.4887092,0.0002888,2]
[319405435,1710717071123,-79488.72069091,0.0002888,2]
[319405436,1710717071134,-10000.0,0.00028888,2]
[319405437,1710717071143,-625.50376961,0.0002889,2]
[319405438,1710717071153,-1227.0,0.00028939,2]
[319405439,1710717071162,-457.0,0.00028939,2]
[319405440,1710717071172,-2000.0,0.00028973,2]
[319405441,1710717071181,-180.545223,0.0002899,2]
[319405442,1710717071191,-200.84892455,0.00029,2]
[319405443,1710717071200,-1025.79935032,0.00029,2]
[319405444,1710717071211,-20000.0,0.00029,5]
[319405445,1710717071221,-560.09962251,0.00029,7]
[319405446,1710717071231,-15000.0,0.00029,5]
[319405447,1710717071242,-15000.0,0.00029,7]
[319405448,1710717071254,-147590.43251062,0.00029,4]
[319405449,1710717071263,-12022.6261967,0.00029,2]
[319405450,1710717071274,-202047.32984916,0.00029,6]
[319405451,1710717071283,-123445.25293587,0.00029,4]
[319405452,1710717071293,-1200.0,0.00029,30]
[319405453,1710717071302,-50000.0,0.00029,4]
[319405454,1710717071311,-7213.76223504,0.00029,120]
[319405455,1710717071322,-200.0,0.00029,2]
[319405456,1710717071332,-150.0,0.00029,2]
[319405457,1710717071341,-350.0,0.00029,29]
[319405458,1710717071350,-605.0,0.00029,2]
[319405459,1710717071360,-561.0,0.00029,17]
[319405460,1710717071370,-1900.0,0.00029,3]
[319405461,1710717071379,-300.0,0.00029041,5]
[319405462,1710717071388,-150.0,0.00029041,2]
[319405463,1710717071397,-510.0,0.00029041,120]
[319405464,1710717071405,-605.0,0.00029092,2]
[319405465,1710717071414,-3282.08449318,0.000292,2]
[319405466,1710717071424,-9183.96,0.000292,2]
[319405467,1710717071433,-9183.96,0.000292,2]
[319405468,1710717071443,-9183.96,0.000292,2]
[319405469,1710717071452,-9183.96,0.000292,2]
[319405470,1710717071462,-9183.96,0.000292,2]
[319405471,1710717071472,-9183.96,0.000292,2]
[319405472,1710717071482,-9183.96,0.000292,2]
[319405473,1710717071492,-9183.96,0.000292,2]
[319405474,1710717071502,-9183.96,0.000292,2]
[319405475,1710717071512,-9183.96,0.000292,2]
[319405476,1710717071522,-9183.96,0.000292,2]
[319405477,1710717071531,-9183.96,0.000292,2]
[319405478,1710717071541,-9183.96,0.000292,2]
[319405479,1710717071550,-9183.96,0.000292,2]
[319405480,1710717071559,-9183.96,0.000292,2]
[319405481,1710717071569,-9183.96,0.000292,2]
[319405482,1710717071578,-9183.96,0.000292,2]
[319405483,1710717071588,-9183.96,0.000292,2]
[319405484,1710717071597,-9183.96,0.000292,2]
[319405485,1710717071606,-9183.96,0.000292,2]
[319405486,1710717071616,-150.80584846,0.00029283,2]
[319405487,1710717071625,-3000.0,0.000293,2]
[319405488,1710717071634,-510.0,0.00029315,120]
[319405489,1710717071644,-605.0,0.00029366,2]
[319405490,1710717071653,-10000.0,0.00029403,2]
[319405491,1710717071662,-415.586462,0.0002944,2]
[319405492,1710717071672,-2100.0,0.000295,2]
[319405493,1710717071681,-441.29615107,0.000295,3]
[319405494,1710717071691,-1000.0,0.000295,2]
[319405495,1710717071700,-561.0,0.000295,18]
[319405496,1710717071709,-300.0,0.00029589,5]
[319405497,1710717071718,-150.0,0.00029589,2]
[319405498,1710717071728,-510.0,0.00029589,120]
[319405499,1710717071737,-605.0,0.0002964,2]
[319405500,1710717071747,-1012.34,0.00029675,2]
[319405501,1710717071756,-250.0996744,0.000297,2]
[319405502,1710717071765,-30310.34577348,0.000297,2]
[319405503,1710717071774,-30310.34577348,0.000297,2]
[319405504,1710717071783,-30310.34577348,0.000297,2]
[319405505,1710717071793,-30310.34577348,0.000297,2]
[319405506,1710717071802,-78395.95157339,0.0002975,2]
[319405507,1710717071812,-150.80584851,0.00029756,2]
[319405508,1710717071823,-1582.23394792,0.00029784,30]
[319405509,1710717071832,-512.97,0.00029798,2]
[319405510,1710717071841,-11342.292406,0.000298,2]
[319405511,1710717071852,-500.0,0.00029862,4]
[319405512,1710717071862,-500.0,0.00029862,4]
[319405513,1710717071872,-500.0,0.00029862,4]
[319405514,1710717071882,-500.0,0.00029862,4]
[319405515,1710717071890,-300.0,0.00029862,4]
[319405516,1710717071899,-500.0,0.00029862,4]
[319405517,1710717071908,-500.0,0.00029862,4]
[319405518,1710717071919,-500.0,0.00029862,4]
[319405519,1710717071928,-500.0,0.00029862,4]
[319405520,1710717071938,-500.0,0.00029862,4]
[319405521,1710717071947,-500.0,0.00029862,4]
[319405522,1710717071957,-500.0,0.00029862,4]
[319405523,1710717071966,-500.0,0.00029862,4]
[319405524,1710717071975,-500.0,0.00029862,4]
[319405525,1710717071984,-500.0,0.00029862,4]
[319405526,1710717071994,-500.0,0.00029862,4]
[319405527,1710717072003,-500.0,0.00029862,4]
[319405528,1710717072012,-500.0,0.00029862,4]
[319405529,1710717072021,-500.0,0.00029862,4]
[319405530,1710717072029,-500.0,0.00029862,4]
[319405531,1710717072038,-500.0,0.00029862,4]
[319405532,1710717072047,-500.0,0.00029862,4]
[319405533,1710717072057,-491.0,0.00029862,4]
[319405534,1710717072066,-510.0,0.00029863,120]
[319405535,1710717072079,-1000.0,0.00029899,2]
[319405536,1710717072089,-17819.66644827,0.000299,2]
[319405537,1710717072098,-605.0,0.00029971,2]
[319405538,1710717072107,-2000.0,0.00029973,2]
[319405539,1710717072117,-2641.09498048,0.0002999,2]
[319405540,1710717072126,-200000.0,0.0003,30]
[319405541,1710717072135,-200000.0,0.0003,20]
[319405542,1710717072144,-9340.22964075,0.0003,2]
[319405543,1710717072154,-133185.73502027,0.0003,7]
[319405544,1710717072163,-305.80986581,0.0003,4]
[319405545,1710717072173,-1501.59390315,0.0003,2]
[319405546,1710717072184,-9455.5000557,0.0003,7]
[319405547,1710717072194,-209.01274166,0.0003,2]
[319405548,1710717072203,-1095.90271219,0.0003,4]
[319405549,1710717072213,-406.1380111,0.0003,2]
[319405550,1710717072224,-97559.19023185,0.0003,2]
[319405551,1710717072234,-125821.33369583,0.0003,2]
[319405552,1710717072245,-345.45875833,0.0003,2]
[319405553,1710717072256,-314.61460945,0.0003,2]
[319405554,1710717072266,-1692.71914232,0.0003,2]
[319405555,1710717072275,-500.0,0.0003,5]
[319405556,1710717072285,-500.0,0.0003,5]
[319405557,1710717072294,-500.0,0.0003,5]
[319405558,1710717072303,-500.0,0.0003,5]
[319405559,1710717072313,-500.0,0.0003,2]
[319405560,1710717072325,-500.0,0.0003,5]
[319405561,1710717072336,-500.0,0.0003,5]
[319405562,1710717072345,-155.10759255,0.0003,4]
[319405563,1710717072355,-10235.0,0.0003,3]
[319405564,1710717072365,-475.00889945,0.0003,2]
[319405565,1710717072376,-500.0,0.0003,2]
[319405566,1710717072386,-60725.22297279,0.0003,4]
[319405567,1710717072396,-593.14521313,0.0003,2]
[319405568,1710717072405,-1764975.36489673,0.0003,7]
[319405569,1710717072414,-196035.55122837,0.0003,7]
[319405570,1710717072423,-45227.09016215,0.0003,2]
[319405571,1710717072432,-181947.76833397,0.0003,7]
[319405572,1710717072441,-283.88296693,0.0003,7]
[319405573,1710717072451,-279.53150642,0.0003,7]
[319405574,1710717072460,-273777.50794023,0.0003,7]
[319405575,1710717072469,-13349.68615492,0.0003,2]
[319405576,1710717072479,-2100.0,0.0003,2]
[319405577,1710717072490,-121937.21742279,0.0003,7]
[319405578,1710717072500,-155.20795377,0.0003,4]
[319405579,1710717072510,-245.40444926,0.0003,4]
[319405580,1710717072519,-483.04128075,0.0003,4]
[319405581,1710717072529,-52114.53731027,0.0003,7]
[319405582,1710717072539,-150.0,0.0003,2]
[319405583,1710717072549,-500.0,0.0003,2]
[319405584,1710717072559,-543.24557251,0.0003,4]
[319405585,1710717072571,-3018.25398761,0.0003,5]
[319405586,1710717072581,-3200.0,0.0003,2]
[319405587,1710717072591,-68779.80914704,0.0003,2]
[319405588,1710717072856,-66220.19085296,0.0003,2]
[319405589,1710717072867,-569.26553867,0.0003,7]
[319405590,1710717072877,-155.03497468,0.0003,2]
[319405591,1710717072887,-2042.71794106,0.0003,7]
[319405592,1710717072896,-8646.07252617,0.0003,3]
[319405593,1710717072906,-1200.0,0.0003,31]
[319405594,1710717072916,-500.0,0.0003,4]
[319405595,1710717072924,-240.0,0.0003,120]
[319405596,1710717072933,-2000.0,0.0003,14]
[319405597,1710717072943,-20000.0,0.0003,2]
[319405598,1710717072953,-382.27968543,0.0003,4]
[319405599,1710717072963,-713.53791425,0.0003,30]
[319405600,1710717072973,-1068.87614222,0.0003,30]
[319405601,1710717072982,-620.0,0.0003,20]
[319405602,1710717072992,-1330.83844778,0.0003,5]
[319405603,1710717073002,-300000.0,0.0003,7]
[319405604,1710717073011,-1003.06872831,0.0003,120]
[319405605,1710717073021,-1966.0,0.0003,3]
[319405606,1710717073030,-150.0,0.0003,3]
[319405607,1710717073176,-284.4,0.0003,2]
[319405608,1710717073187,-500.0,0.0003,120]
[319405609,1710717073196,-210.05691802,0.0003,7]
[319405610,1710717073206,-561.0,0.0003,18]
[319405611,1710717073216,-500.0,0.0003,2]
[319405612,1710717073230,-150.0,0.0003,2]
[319405613,1710717073241,-152.37,0.0003,2]
[319405614,1710717073250,-152.37,0.0003,2]
[319405615,1710717073261,-152.37,0.0003,2]
[319405616,1710717073272,-152.37,0.0003,2]
[319405617,1710717073281,-152.37,0.0003,2]
[319405618,1710717073290,-152.37,0.0003,2]
[319405619,1710717073302,-152.37,0.0003,2]
[319405620,1710717073312,-152.37,0.0003,2]
[319405621,1710717073324,-152.37,0.0003,2]
[319405622,1710717073333,-205.0,0.0003,2]
[319405623,1710717073344,-2500.81659252,0.0003,14]
[319405624,1710717073354,-302.43,0.0003,2]
[319405625,1710717073365,-302.43,0.0003,2]
[319405626,1710717073375,-302.43,0.0003,2]
[319405627,1710717073384,-302.43,0.0003,2]
[319405628,1710717073394,-302.43,0.0003,2]
[319405629,1710717073404,-302.43,0.0003,2]
[319405630,1710717073413,-302.43,0.0003,2]
[319405631,1710717073423,-302.43,0.0003,2]
[319405632,1710717073432,-302.43,0.0003,2]
[319405633,1710717073442,-302.43,0.0003,2]
[319405634,1710717073451,-302.43,0.0003,2]
[319405635,1710717073460,-302.43,0.0003,2]
[319405636,1710717073470,-302.43,0.0003,2]
[319405637,1710717073479,-302.43,0.0003,2]
[319405638,1710717073489,-302.43,0.0003,2]
[319405639,1710717073498,-302.43,0.0003,2]
[319405640,1710717073508,-302.43,0.0003,2]
[319405641,1710717073519,-302.43,0.0003,2]
[319405642,1710717073529,-302.43,0.0003,2]
[319405643,1710717073539,-302.43,0.0003,2]
[319405644,1710717073549,-302.43,0.0003,2]
[319405645,1710717073559,-302.43,0.0003,2]
[319405646,1710717073569,-302.43,0.0003,2]
[319405647,1710717073580,-302.43,0.0003,2]
[319405648,1710717073591,-302.43,0.0003,2]
[319405649,1710717073601,-302.43,0.0003,2]
[319405650,1710717073611,-302.43,0.0003,2]
[319405651,1710717073624,-302.43,0.0003,2]
[319405652,1710717073634,-302.43,0.0003,2]
[319405653,1710717073644,-302.43,0.0003,2]
[319405654,1710717073654,-302.43,0.0003,2]
[319405655,1710717073663,-302.43,0.0003,2]
[319405656,1710717073674,-302.43,0.0003,2]
[319405657,1710717073686,-302.43,0.0003,2]
[319405658,1710717073698,-302.43,0.0003,2]
[319405659,1710717073708,-302.43,0.0003,2]
[319405660,1710717073718,-302.43,0.0003,2]
[319405661,1710717073729,-302.43,0.0003,2]
[319405662,1710717073739,-302.43,0.0003,2]
[319405663,1710717073749,-302.43,0.0003,2]
[319405664,1710717073758,-302.43,0.0003,2]
[319405665,1710717073767,-302.43,0.0003,2]
[319405666,1710717073778,-302.43,0.0003,2]
[319405667,1710717073788,-302.43,0.0003,2]
[319405668,1710717073798,-302.43,0.0003,2]
[319405669,1710717073808,-302.43,0.0003,2]
[319405670,1710717073817,-302.43,0.0003,2]
[319405671,1710717073828,-302.43,0.0003,2]
[319405672,1710717073837,-302.43,0.0003,2]
[319405673,1710717073847,-302.43,0.0003,2]
[319405674,1710717073857,-302.43,0.0003,2]
[319405675,1710717073866,-302.43,0.0003,2]
[319405676,1710717073876,-302.43,0.0003,2]
[319405677,1710717073885,-302.43,0.0003,2]
[319405678,1710717073895,-302.43,0.0003,2]
[319405679,1710717073904,-302.43,0.0003,2]
[319405680,1710717073915,-302.43,0.0003,2]
[319405681,1710717073924,-302.43,0.0003,2]
[319405682,1710717073933,-302.43,0.0003,2]
[319405683,1710717073942,-302.43,0.0003,2]
[319405684,1710717073952,-302.43,0.0003,2]
[319405685,1710717073962,-302.43,0.0003,2]
[319405686,1710717073971,-302.43,0.0003,2]
[319405687,1710717073982,-302.43,0.0003,2]
[319405688,1710717073991,-302.43,0.0003,2]
[319405689,1710717074001,-302.43,0.0003,2]
[319405690,1710717074011,-302.43,0.0003,2]
[319405691,1710717074020,-302.43,0.0003,2]
[319405692,1710717074029,-302.43,0.0003,2]
[319405693,1710717074038,-302.43,0.0003,2]
[319405694,1710717074048,-302.43,0.0003,2]
[319405695,1710717074057,-302.43,0.0003,2]
[319405696,1710717074066,-302.43,0.0003,2]
[319405697,1710717074077,-302.43,0.0003,2]
[319405698,1710717074086,-302.43,0.0003,2]
[319405699,1710717074095,-302.43,0.0003,2]
[319405700,1710717074104,-302.43,0.0003,2]
[319405701,1710717074113,-302.43,0.0003,2]
[319405702,1710717074122,-1012.34,0.0003001,2]
[319405703,1710717074131,-533.417863,0.000301,2]
[319405704,1710717074140,-177.20371842,0.00030132,4]
[319405705,1710717074149,-176.63748575,0.00030133,4]
[319405706,1710717074158,-158.39811853,0.00030133,4]
[319405707,1710717074167,-500.0,0.00030136,2]
[319405708,1710717074177,-500.0,0.00030136,2]
[319405709,1710717074186,-500.0,0.00030136,2]
[319405710,1710717074195,-3321.4725,0.00030136,2]
[319405711,1710717074205,-510.0,0.00030136,120]
[319405712,1710717074215,-2540.0,0.00030137,10]
[319405713,1710717074228,-300.0,0.00030137,5]
[319405714,1710717074239,-150.0,0.00030137,2]
[319405715,1710717074250,-155.0,0.00030138,2]
[319405716,1710717074259,-1026.0,0.00030209,5]
[319405717,1710717074269,-7984.9,0.00030237,21]
[319405718,1710717074278,-152.0,0.00030395,5]
[319405719,1710717074288,-20000.0,0.000304,5]
[319405720,1710717074297,-500.0,0.0003041,4]
[319405721,1710717074310,-500.0,0.0003041,4]
[319405722,1710717074321,-500.0,0.0003041,4]
[319405723,1710717074332,-510.0,0.0003041,120]
[319405724,1710717074343,-60195.60039247,0.0003045,2]
[319405725,1710717074352,-561.0,0.000305,19]
[319405726,1710717074361,-300.0,0.000306,2]
[319405727,1710717074370,-155.33791433,0.00030611,7]
[319405728,1710717074379,-154.52759483,0.00030619,7]
[319405729,1710717074389,-510.21990168,0.00030684,4]
[319405730,1710717074399,-500.0,0.00030684,4]
[319405731,1710717074408,-500.0,0.00030684,4]
[319405732,1710717074417,-510.0,0.00030684,120]
[319405733,1710717074426,-300.0,0.00030685,5]
[319405734,1710717074435,-150.0,0.00030685,2]
[319405735,1710717074444,-15879.209369,0.000308,2]
[319405736,1710717074454,-463.589888,0.000308,2]
[319405737,1710717074463,-1366.095955,0.000308,2]
[319405738,1710717074472,-1821.461273,0.000308,2]
[319405739,1710717074482,-2276.826592,0.000308,2]
[319405740,1710717074492,-325.130349,0.000308,2]
[319405741,1710717074502,-487.695524,0.000308,2]
[319405742,1710717074512,-650.260698,0.000308,2]
[319405743,1710717074521,-812.825873,0.000308,2]